Cogmind - Beta 16 @@@ ROGUE MODE // 2025.10.28 @ 04:49:21 Player: shapeshifter Result: Destroyed by L-41 Fighter with Axe Performance ------------- Evolutions (3) 1500 Regions Visited (7) 1400 Robots Destroyed (219) 1095 Value Destroyed (6957) 6957 Prototype IDs (5) 100 Alien Tech Used (0) 0 Bonus (2323) 2323 TOTAL SCORE: 13375 Bonus ------- Triggered High Security 500 High Alert Combat Kills 1763 Follower Combat Kills 60 Cogmind --------- Core Integrity 0/700 Matter 67/300 Energy 97/100 System Corruption 16% Temperature Cool (9) Movement Core (1500) Ox29 Location -7/Storage Parts ------- > --- POWER (2) -------- (None) > --- PROPULSION (4) --- (None) > --- UTILITY (4) ------ Huge Storage Unit Light Regenerative Plating > --- WEAPON (3) ------- Precision Grenade Launcher > --- INVENTORY (25) --- Light Nuclear Core Light Treads Light Treads Improved Heat Sink High-capacity Matter Pod (0) High-capacity Matter Pod (0) High-capacity Matter Pod (0) Insulated Plating Insulated Plating Insulated Plating EM Disruption Field Rocket Array Rocket Array Rocket Array Rocket Array Rocket Array Rocket Array Remote Datajack Peak State ------------ > --- POWER ------------ Enhanced Nuclear Core Light Angular Momentum Engine > --- PROPULSION ------- Light Treads Light Treads Light Treads Improved Treads > --- UTILITY ---------- Improved Heat Sink Huge Storage Unit Medium Reactive Plating High-powered Tractor Beam > --- WEAPON ----------- Precision Grenade Launcher Precision Grenade Launcher Precision Grenade Launcher > --- INVENTORY -------- Enhanced Nuclear Core Light Treads Light Treads Light Treads High-capacity Matter Pod High-capacity Matter Pod High-capacity Matter Pod Medium Reactive Plating Medium Reactive Plating Light Regenerative Plating Minigun Minigun Precision Grenade Launcher Precision Grenade Launcher Precision Grenade Launcher Rocket Array Rocket Array Rocket Array Rocket Array Rocket Array Rocket Array [Rating: 48] Favorites ----------- Power Enhanced Nuclear Core Engine Light Angular Momentum Engine Power Core Enhanced Nuclear Core Propulsion Light Treads Treads Light Treads Wheel Wheel Utility Improved Heat Sink Device Improved Heat Sink Storage Huge Storage Unit Hackware Hacking Suite Protection Medium Reactive Plating Weapon Precision Grenade Launcher Energy Gun Heavy Particle Gun Ballistic Gun Minigun Launcher Precision Grenade Launcher Build | -11 -10 -10 -10 -9 -8 -7 -7 ------- Run | Yrd Mat Min Exi Min Mat Fac Sto Slots Evolved 6 | . . . . . 4 2 . Power 1 | . . . . . . 1 . Propulsion 2 | . . . . . 1 1 . Utility 2 | . . . . . 2 . . Weapon 1 | . . . . . 1 . . Parts Attached 88 | 7 10 . 2 3 26 7 33 Power 11 | 1 3 . . 1 3 1 2 Engine 6 | 1 2 . . 1 1 . 1 Core 5 | . 1 . . . 2 1 1 Reactor . | . . . . . . . . Propulsion 24 | 2 2 . . . 6 3 11 Treads 20 | 2 2 . . . 6 3 7 Leg . | . . . . . . . . Wheel 4 | . . . . . . . 4 Hover . | . . . . . . . . Flight . | . . . . . . . . Utility 25 | 2 2 . 1 . 7 2 11 Device 7 | 1 1 . . . 1 . 4 Storage 4 | 1 1 . . . 1 . 1 Processor . | . . . . . . . . Hackware 2 | . . . . . 2 . . Protection 12 | . . . 1 . 3 2 6 Artifact . | . . . . . . . . Weapon 28 | 2 3 . 1 2 10 1 9 Energy Gun 1 | . . . . . 1 . . Energy Cannon . | . . . . . . . . Ballistic Gun 18 | 2 3 . 1 1 8 1 2 Ballistic Cannon . | . . . . . . . . Launcher 9 | . . . . 1 1 . 7 Special Weapon . | . . . . . . . . Impact Weapon . | . . . . . . . . Slashing Weapon . | . . . . . . . . Piercing Weapon . | . . . . . . . . Special Melee Weapon . | . . . . . . . . Unidentified Prototypes 5 | . . . . . 2 . 3 Parts Lost 53 | . 2 . . . 13 1 37 Power 7 | . 1 . . . 2 . 4 Propulsion 19 | . . . . . 4 . 15 Utility 16 | . 1 . . . 5 1 9 Weapon 11 | . . . . . 2 . 9 Highest Loss Streak 11 | . 2 . . . 3 1 11 To Critical Strikes 2 | . . . . . . . 2 Average Backups 17 | 3 9 13 13 15 17 19 21 Power . | 1 . . . . . 1 . Propulsion 2 | 1 2 4 4 4 3 2 2 Utility 7 | . 4 7 8 9 8 11 7 Weapon 6 | . 1 2 1 1 4 4 10 Tool/Special . | . . . . . . . . Unused Backups 35 | . 2 . 1 1 11 . 20 Power 1 | . . . . . . . 1 Propulsion 4 | . . . . . 2 . 2 Utility 20 | . 1 . 1 1 7 . 10 Weapon 9 | . 1 . . . 2 . 6 Tool/Special 1 | . . . . . . . 1 Average Slot Usage (%) 95 | . 97 100 100 100 91 99 95 Engine 6 | . 6 14 14 14 4 7 4 Core 4 | . 6 . . . 1 6 6 Treads 25 | . 28 28 28 28 26 30 22 Wheel 3 | . . . . . . . 6 Device 7 | . 12 14 1 . 9 6 7 Storage 9 | . 14 14 14 14 9 7 7 Hackware 2 | . . . . . 10 15 . Protection 8 | . . . 12 14 2 . 13 Ballistic Gun 18 | . 28 28 28 27 25 23 9 Launcher 6 | . . . . . . . 13 Peak Build Rating 48 | 7 13 11 12 13 33 41 48 Average Rating 29 | 5 9 11 11 12 24 39 42 On Entrance 15 | . 7 11 11 12 13 33 40 Avg Prop Armor Cover (%) 3 | . . . . . . . 3 Naked Turns . | . . . . . . . . Heaviest Build 151 | 12 28 26 32 38 62 86 151 Greatest Support 83 | 40 46 46 46 46 69 82 83 Greatest Overweight (x) 11 | 3 . . . . 1 1 11 Average Overweight (x) . | . . . . . . . 1 Largest Inventory Capacity 25 | 8 15 15 15 15 20 20 25 Average Capacity 20 | 7 11 15 15 15 19 20 24 Most Carried 25 | 6 15 13 15 15 20 20 25 Average Carried 17 | 4 9 13 13 14 17 19 21 Final Capacity 25 | 8 15 15 15 15 20 20 25 Final Carried 24 | 5 13 13 15 15 20 19 24 Class Distribution -------------------- 35% | Scavenger-Tank 32% | Mutant 12% | Scavenger-Gunner 8% | Scavenger-Bomber 3% | Tank Dominant Class ---------------- Mutant | -10/Materials Mutant | -10/Mines Mutant | -10/Exiles Mutant | -9/Mines Scavenger-Gunner | -8/Materials Scavenger-Gunner | -7/Factory Scavenger-Tank | -7/Storage Resources | -11 -10 -10 -10 -9 -8 -7 -7 ----------- Run | Yrd Mat Min Exi Min Mat Fac Sto Matter Collected 6911 | 229 483 65 152 134 1595 238 4015 Remotely 1170 | . 161 65 . . 504 . 440 Salvage Created 7000 | 54 635 75 . 189 2289 320 3438 Parts 394 | 7 39 4 . 14 108 15 207 Haulers Intercepted 9 | . 1 . . . 4 . 4 Recyclers Shooed 3 | . . . . . . . 3 Parts Field Recycled . | . . . . . . . . Retrieved Matter . | . . . . . . . . Parts Self-Destructed . | . . . . . . . . Prevented . | . . . . . . . . Parts Restored . | . . . . . . . . Kills | -11 -10 -10 -10 -9 -8 -7 -7 ------- Run | Yrd Mat Min Exi Min Mat Fac Sto Combat Hostiles Destroyed 144 | . 17 2 . 7 36 5 77 Guns 85 | . 17 2 . 4 31 5 26 AOE 59 | . . . . 3 5 . 51 Classes Destroyed 17 | 1 4 . . 4 4 . 4 Worker 22 | . . . . 1 3 . 18 Builder 15 | . . . . 1 . . 14 Tunneler 3 | 2 . . . . . . 1 Hauler 9 | . 1 . . . 4 . 4 Recycler 10 | . . . . . 3 . 7 Mechanic 8 | . . . . . 1 . 7 Operator 3 | . . . . . 2 . 1 Watcher 7 | . 1 . . . 3 1 2 Swarmer 19 | . 6 . . 3 4 . 6 Grunt 79 | . 11 2 . 1 21 3 41 Brawler 3 | . . . . . . . 3 Duelist 6 | . . . . 1 3 . 2 Protector 2 | . . . . . . . 2 Sentry 19 | . . . . . 8 2 9 Hunter 5 | . . . . . . . 5 Programmer 9 | . . . . . . . 9 Assembled 2 | . . . . 2 . . . Best Kill Streak 8 | 1 3 2 . 4 8 2 8 Combat Bots Only 7 | . 3 2 . 3 6 2 7 Max Kills in Single Turn 4 | 1 1 1 . 1 4 1 4 Gunslinging . | . . . . . . . . Exploded 4 | . . . . 1 4 . 3 Melee . | . . . . . . . . Uniques/NPCs Destroyed . | . . . . . . . . Combat | -11 -10 -10 -10 -9 -8 -7 -7 -------- Run | Yrd Mat Min Exi Min Mat Fac Sto Hostile Shots Fired 943 | . 72 18 . 17 208 37 591 Missed 286 | . 13 4 . 3 64 18 184 Hits 657 | . 59 14 . 14 144 19 407 Melee 13 | . . . . 1 3 . 9 Projectile 644 | . 59 14 . 13 141 19 398 AOE 1 | . . . . . . . 1 Critical Strikes 24 | . 3 . . . 6 . 15 Part Disruptions 1 | . . . . . . . 1 Damage Taken 8994 | . 698 184 . 313 2209 238 5352 Core 1192 | . 103 25 . 37 316 42 669 Absorbed by Shields . | . . . . . . . . Ignored by Resistances 536 | . . . . . . . 536 Regen/Repaired (Parts) 3 | . . . . . . . 3 Core Remaining (%) 58 | 100 . . . 34 42 . . Volleys Fired 533 | 9 63 11 . 27 144 14 265 Largest 3 | 2 2 2 . 2 3 3 3 Hottest 75 | 40 40 40 . 40 73 75 75 Shots Fired 1082 | 18 125 22 . 48 388 42 439 Gun 904 | 18 125 22 . 40 386 42 271 Cannon . | . . . . . . . . Launcher 178 | . . . . 8 2 . 168 Special . | . . . . . . . . Kinetic 904 | 18 125 22 . 40 386 42 271 Thermal . | . . . . . . . . Explosive 178 | . . . . 8 2 . 168 Electromagnetic . | . . . . . . . . Robot Hit Streak 18 | 5 10 5 . 16 16 9 18 Robot Miss Streak 5 | 4 4 1 . 2 5 3 3 Penetration Max . | . . . . . . . . Secondary Targets 14 | . 2 1 . . 9 . 2 Max Gunslinging Chain 1 | . 1 1 . . 1 . 1 Shots Hit Robots 710 | 12 83 15 . 32 272 31 265 Core Hits 462 | 3 39 6 . 16 110 13 275 Critical Kills 1 | . 1 . . . . . . Critical Parts Destroyed 5 | . . . . . 1 1 3 Critical Strikes 7 | . 1 . . . 2 1 3 Destroy 7 | . 1 . . . 2 1 3 Melee Attacks . | . . . . . . . . Impact . | . . . . . . . . Slashing . | . . . . . . . . Piercing . | . . . . . . . . Sneak Attacks . | . . . . . . . . Combat Hostiles . | . . . . . . . . Follow-up Attacks . | . . . . . . . . Damage Inflicted 21311 | 121 782 136 . 553 4233 505 14981 Guns 8966 | 121 782 136 . 224 3875 505 3323 Cannons . | . . . . . . . . Explosions 12326 | . . . . 329 358 . 11639 Melee . | . . . . . . . . Ramming 19 | . . . . . . . 19 Kinetic 8966 | 121 782 136 . 224 3875 505 3323 Thermal . | . . . . . . . . Explosive 12326 | . . . . 329 358 . 11639 Electromagnetic . | . . . . . . . . Impact . | . . . . . . . . Slashing . | . . . . . . . . Piercing . | . . . . . . . . Highest Corruption 16 | . 2 2 2 2 . . 16 Average Corruption 3 | . 1 2 2 2 . . 3 Corruption Purged . | . . . . . . . . Corruption Blocked . | . . . . . . . . Effects 129 | . 17 4 5 9 . . 94 Message Errors 37 | . 6 1 1 . . . 29 Matter Fused 31 | . 5 2 3 2 . . 19 Heat Flow Errors 13 | . 1 . . . . . 12 Energy Discharges 9 | . 1 . . 1 . . 7 Parts Fused 1 | . . . . . . . 1 Data Loss (minor) 19 | . 3 . 1 2 . . 13 Data Loss (major) 7 | . . 1 . 1 . . 5 Misfires 3 | . . . . 2 . . 1 Alerts 1 | . . . . . . . 1 Weapon Failures 8 | . 1 . . 1 . . 6 Overload Shots . | . . . . . . . . Overflow Damage 307 | . . . . 32 . . 275 Projectiles . | . . . . . . . . Explosions 307 | . . . . 32 . . 275 Melee . | . . . . . . . . Knockbacks . | . . . . . . . . Impact . | . . . . . . . . Kinetic . | . . . . . . . . Secondary . | . . . . . . . . Self-Inflicted Damage 787 | . . . . 153 . . 634 Shots 33 | . . . . 6 . . 27 Rammed 2 | . . . . . . . 2 Targets Rammed 2 | . . . . . . . 2 Kicked . | . . . . . . . . Crushed . | . . . . . . . . Highest Temperature 384 | . 140 30 . 26 106 74 384 Average Temperature 58 | . 11 18 . 7 27 17 85 Received Heat Transfer 3225 | . 408 105 . . 1107 90 1515 Effects 3 | . . . . . . . 3 Energy Bleed 2 | . . . . . . . 2 Interference 1 | . . . . . . . 1 Siege Activations . | . . . . . . . . Martial Activations . | . . . . . . . . Shielding Activations . | . . . . . . . . Robots Disrupted . | . . . . . . . . Combat Hostiles . | . . . . . . . . Robots Corrupted . | . . . . . . . . Combat Hostiles . | . . . . . . . . Parts Fried . | . . . . . . . . Impact Corruptions . | . . . . . . . . Robots Melted . | . . . . . . . . Combat Hostiles . | . . . . . . . . Parts Melted . | . . . . . . . . Heat Transferred . | . . . . . . . . Parts Sabotaged . | . . . . . . . . Parts Stolen . | . . . . . . . . Parts Stripped . | . . . . . . . . Power Chain Reactions . | . . . . . . . . Alert | -11 -10 -10 -10 -9 -8 -7 -7 ------- Run | Yrd Mat Min Exi Min Mat Fac Sto Maximum Alert Level 5 | . . . . . 2 . 5 Low Security (%) 54 | 100 100 100 . 100 74 100 17 Level 1 7 | . . . . . 9 . 12 Level 2 13 | . . . . . 15 . 20 Level 3 10 | . . . . . . . 20 Level 4 8 | . . . . . . . 17 Level 5 6 | . . . . . . . 12 High Security . | . . . . . . . . Max Security . | . . . . . . . . Peak Influence 1901 | 5 100 50 . 60 475 94 1901 Initial 87 | . . . . . 17 87 6 Average 439 | 1 44 7 . 9 188 39 792 Influence Increases 5216 | 10 521 50 . 188 1166 194 3087 Destroy 0b10 Robot/C 2840 | . 340 40 . 120 720 120 1500 Destroy 0b10 Robot/NC 415 | 10 10 . . 10 80 10 295 Destroy Leader 734 | . 84 10 . 20 184 34 402 Allied During Kill 20 | . . . . 6 . 14 . Successful Hack 78 | . 27 . . . 10 16 25 Select Force Hacks 110 | . 60 . . . . . 50 Disable Machine 210 | . . . . . 30 . 180 Destroy Structure 659 | . . . . 32 22 . 605 Lose Combat Pursuer 150 | . . . . . 120 . 30 Influence Decreases 3340 | 10 521 50 . 143 1018 372 1226 Entered New Map 143 | . . . . . 28 106 9 Time Decay 2205 | 10 501 50 . 143 568 226 707 Lost Part 512 | . 20 . . . 122 . 370 Lost Ally 180 | . . . . . . 40 140 Purge Threat 300 | . . . . . 300 . . Squads Dispatched 46 | . 4 . . . 7 1 34 Investigation 10 | . 4 . . . . 1 5 Extermination 9 | . . . . . . . 9 Reinforcement 14 | . . . . . 5 . 9 Assault 7 | . . . . . . . 7 Garrison 6 | . . . . . 2 . 4 Intercept . | . . . . . . . . Searches Triggered . | . . . . . . . . Construction Impeded 8 | . . . . . 1 . 7 Haulers Reinforced 1 | . . . . . . . 1 Active Scanning Responses . | . . . . . . . . Cargo Convoy Interrupts . | . . . . . . . . Stealth | -11 -10 -10 -10 -9 -8 -7 -7 --------- Run | Yrd Mat Min Exi Min Mat Fac Sto Distress Signals 9 | . . . . . 7 . 2 Communications Jammed . | . . . . . . . . Distress Signals . | . . . . . . . . Times Spotted 211 | . 26 2 . 8 61 9 105 Peak Tracking Total 10 | . 4 2 . 3 9 3 10 Tactical Retreats 7 | . . . . . 5 . 2 Traps | -11 -10 -10 -10 -9 -8 -7 -7 ------- Run | Yrd Mat Min Exi Min Mat Fac Sto Traps Triggered 8 | . 3 . . . . 1 4 Indirectly . | . . . . . . . . Trap Hack Attempts . | . . . . . . . . Triggered . | . . . . . . . . Disarmed . | . . . . . . . . Reprogrammed . | . . . . . . . . Reused . | . . . . . . . . Traps Extracted . | . . . . . . . . Installed . | . . . . . . . . Triggered . | . . . . . . . . Machines | -11 -10 -10 -10 -9 -8 -7 -7 ---------- Run | Yrd Mat Min Exi Min Mat Fac Sto Machines Disabled 14 | . . . . . 2 . 12 Max in Single Turn 2 | . . . . . 1 . 2 Garrison Access 1 | . . . . . 1 . . Machines Repaired . | . . . . . . . . Machines Dismantled . | . . . . . . . . Machines Sabotaged 1 | . . . . . . . 1 Overloaded Fab Kills . | . . . . . . . . Hacking | -11 -10 -10 -10 -9 -8 -7 -7 --------- Run | Yrd Mat Min Exi Min Mat Fac Sto Machines Accessed 37 | . 10 . 1 . 10 4 12 Terminals 25 | . 8 . . . 6 2 9 Fabricators 2 | . . . . . . 2 . Repair Stations . | . . . . . . . . Recycling Units 5 | . 2 . . . 1 . 2 Scanalyzers 2 | . . . . . 2 . . Garrison Access 2 | . . . . . 1 . 1 Total Hacks 93 | . 29 . 1 . 32 7 24 Successful 47 | . 12 . 1 . 23 3 8 Failed 46 | . 17 . . . 9 4 16 Catastrophic 10 | . 3 . . . 1 2 4 Database Lockouts . | . . . . . . . . Manual 55 | . 22 . . . 16 2 15 Terminals 61 | . 22 . . . 20 4 15 Fabricators 3 | . . . . . . 3 . Repair Stations . | . . . . . . . . Recycling Units 14 | . 7 . . . 1 . 6 Scanalyzers 8 | . . . . . 8 . . Garrison Access 6 | . . . . . 3 . 3 Terminal Hacks 16 | . 2 . 1 . 8 2 3 Record 2 | . . . 1 . 1 . . Open Door 3 | . . . . . . . 3 Branch Access Points 1 | . . . . . . 1 . Machine Index 1 | . . . . . 1 . . Terminal Index 2 | . 1 . . . 1 . . Unreport Threat 2 | . . . . . 2 . . Recall Reinforcements 1 | . . . . . 1 . . Zone Layout 4 | . 1 . . . 2 1 . Fabricator Hacks 1 | . . . . . . 1 . Build 1 | . . . . . . 1 . Repair Station Hacks . | . . . . . . . . Recycling Unit Hacks 3 | . 1 . . . 1 . 1 Retrieve Components 3 | . 1 . . . 1 . 1 Scanalyzer 8 | . . . . . 8 . . Retrieve Study 8 | . . . . . 8 . . Garrison Access Hacks 1 | . . . . . 1 . . Seal Access 1 | . . . . . 1 . . Unauthorized Hacks 18 | . 9 . . . 5 . 4 Terminals 15 | . 7 . . . 5 . 3 Botnet 1 | . 1 . . . . . . Skim 13 | . 6 . . . 5 . 2 Sabotage 1 | . . . . . . . 1 Fabricators . | . . . . . . . . Repair Stations . | . . . . . . . . Recycling Units 3 | . 2 . . . . . 1 Mask 1 | . . . . . . . 1 Tunnel 2 | . 2 . . . . . . Scanalyzers . | . . . . . . . . Garrison Access . | . . . . . . . . Data Cores Recovered . | . . . . . . . . Used . | . . . . . . . . Hacking Detections 32 | . 10 . . . 8 4 10 Full Trace Events 5 | . 1 . . . . 1 3 Feedback Events . | . . . . . . . . Feedback Blocked . | . . . . . . . . Robot Schematics Acquired . | . . . . . . . . Robots Built 3 | . . . . . . 3 . Authchips . | . . . . . . . . Time 49 | . . . . . . 49 . Total Robot Build Rating 6 | . . . . . . 6 . Part Schematics Acquired . | . . . . . . . . Parts Built . | . . . . . . . . Authchips . | . . . . . . . . Time . | . . . . . . . . Total Part Build Rating . | . . . . . . . . Part Studies Acquired 7 | . . . . . 7 . . Parts Repaired . | . . . . . . . . Time . | . . . . . . . . Parts Recycled . | . . . . . . . . Recycled Matter . | . . . . . . . . Retrieved Matter . | . . . . . . . . Retrieved Components 20 | . 1 . . . 10 . 9 Parts Scanalyzed . | . . . . . . . . Part Schematics Acquired . | . . . . . . . . Parts Damaged . | . . . . . . . . Bothacking | -11 -10 -10 -10 -9 -8 -7 -7 ------------ Run | Yrd Mat Min Exi Min Mat Fac Sto Used RIF Installer . | . . . . . . . . Robots Hacked . | . . . . . . . . Non-combat . | . . . . . . . . Combat . | . . . . . . . . Robot Hacks Applied . | . . . . . . . . Relay Couplers Released . | . . . . . . . . Fabnet Peak Effective % . | . . . . . . . . Robots Rewired . | . . . . . . . . Allies Hacked . | . . . . . . . . Hacks Repelled . | . . . . . . . . Allies | -11 -10 -10 -10 -9 -8 -7 -7 -------- Run | Yrd Mat Min Exi Min Mat Fac Sto Total Allies 5 | . . . . 2 . 3 . Largest Group 3 | . . . . 2 . 3 1 Highest-Rated Group 54 | . . . . 41 . 54 18 Highest-Rated Ally 31 | . . . . 31 . 18 18 Total Orders 2 | . . . . . . . 2 EXPLORE 2 | . . . . . . . 2 Ally Attacks 20 | . . . . 9 . 11 . Total Damage 496 | . . . . 168 . 328 . Kills 3 | . . . . 1 . 2 . Allies Corrupted 1 | . . . . 1 . . . Allies Melted . | . . . . . . . . Intel | -11 -10 -10 -10 -9 -8 -7 -7 ------- Run | Yrd Mat Min Exi Min Mat Fac Sto Active Infowar (turns) 388 | 13 375 . . . . . . Seismic 388 | 13 375 . . . . . . Robot Analysis Total . | . . . . . . . . Derelict Logs Recovered 1 | . . . . 1 . . . Drone Launches 20 | . . . . . . . 20 Drone Recoveries 5 | . . . . . . . 5 Exploration | -11 -10 -10 -10 -9 -8 -7 -7 ------------- Run | Yrd Mat Min Exi Min Mat Fac Sto Turns Passed 10926 | 118 1629 286 397 958 1719 515 5304 Spaces Moved 3970 | 48 648 160 244 217 764 273 1616 Core 11 | 11 . . . . . . . Treads 3572 | 37 648 160 244 217 764 273 1229 Legs . | . . . . . . . . Wheels 387 | . . . . . . . 387 Hover . | . . . . . . . . Flight . | . . . . . . . . Fastest Speed 50 | 50 160 160 160 160 155 156 125 Average Speed 173 | 137 160 160 160 160 157 156 195 Slowest Speed 280 | 200 160 160 160 160 240 196 280 Overloaded Moves . | . . . . . . . . Propulsion Burnouts . | . . . . . . . . Robots Hopped . | . . . . . . . . Potential Cave-ins . | . . . . . . . . Cave-ins Triggered . | . . . . . . . . Exploration Rate (%) 49 | 3 90 33 58 46 76 11 81 Regions Visited 7 Branch Regions 4 Pre-discovered Areas 4 | . 3 . 1 . . . . Known Exits Taken 1 | . . . . . . 1 . Unknown Exits Taken 6 | 1 1 1 1 1 1 . . Scrap Searched 1 | . . . . 1 . . . Spaces Dug 13 | . . . . . . . 13 Terrain Destroyed 826 | . . . . 42 23 . 761 Melee . | . . . . . . . . Projectile 1 | . . . . . . . 1 AOE 825 | . . . . 42 23 . 760 Terrain Rammed . | . . . . . . . . Walls Destroyed . | . . . . . . . . Machines Disabled . | . . . . . . . . Actions | -11 -10 -10 -10 -9 -8 -7 -7 --------- Run | Yrd Mat Min Exi Min Mat Fac Sto Total 7241 | 83 1138 173 251 789 1044 338 3425 Wait 2438 | 9 391 3 . 538 39 39 1419 Move 3963 | 47 647 159 243 216 763 272 1616 Hop . | . . . . . . . . Pick Up 122 | 11 17 . 4 1 43 3 43 Fast Attach 4 | 1 . . . . 2 . 1 Attach 67 | 6 2 . . . 21 3 35 Detach 5 | . . . . . . . 5 Swap 41 | . 8 . 2 4 8 4 15 Drop 59 | . 10 . 2 3 24 3 17 Fire 533 | 9 63 11 . 27 144 14 265 Melee . | . . . . . . . . Ram 2 | . . . . . . . 2 Kick . | . . . . . . . . Crush . | . . . . . . . . Escape Stasis . | . . . . . . . . Rewire . | . . . . . . . . Trap . | . . . . . . . . Miscellaneous 7 | . . . . . . . 7 Route ------- -11/Scrapyard -10/Materials (discovered 5 exits: *Mat x3 / [*Min] / [*Sub]) -10/Mines (discovered 3 exits: Mat x2 / *Exi) -10/Exiles -9/Mines (discovered 2 exits: *Mat x2) -8/Materials (discovered 2 exits: *Fac x2) -7/Factory (discovered 4 exits: *Sto x2 / Low x2) -7/Storage (discovered 2 exits: [*Fac] / *Rec) History --------- Turn | Location | Event 16 | -11/Scrapyard | Discovered new exit (range 15) 119 | -11/Scrapyard | Entered Materials 317 | -10/Materials | Build established: Mutant 671 | -10/Materials | Discovered new exit (range 10) 795 | -10/Materials | Discovered new exit (range 16) 830 | -10/Materials | Discovered new exit (range 13) 909 | -10/Materials | Discovered new exit (range 6) 1169 | -10/Materials | Discovered new exit (range 12) 1446 | -10/Materials | Loaded intel: 15 trap records 1508 | -10/Materials | Learned 4 Recycling zone layouts 1562 | -10/Materials | Learned location of 2 exits from Mines 1606 | -10/Materials | Learned location of 1 exit from Storage 1638 | -10/Materials | Learned Storage stockpile data 1736 | -10/Materials | Loaded intel: 8 terminal locations 1748 | -10/Materials | Entered Mines 1749 | -10/Mines | Identified exit to Materials 1776 | -10/Mines | Met a Derelict bent on vengeance 1780 | -10/Mines | Core integrity fell below 50% 1913 | -10/Mines | Deemed a non-threat by the Exiles lab entrance 1913 | -10/Mines | Discovered new exit (range 5) 1971 | -10/Mines | Assembled infested the area 2034 | -10/Mines | Entered Exiles 2080 | -10/Exiles | Met 8R-AWN 2104 | -10/Exiles | Met EX-HEX 2169 | -10/Exiles | Met EX-DEC 2176 | -10/Exiles | Learned location of Zion (-6) 2415 | -10/Exiles | Discovered new exit (range 10) 2431 | -10/Exiles | Entered Mines 2521 | -9/Mines | Found a Scrap Suit stashed away for nefarious purposes 2587 | -9/Mines | Discovered new exit (range 6) 2732 | -9/Mines | Discovered new exit (range 8) 2798 | -9/Mines | Learned Materials stockpile data 2808 | -9/Mines | Excavation squad dispatched 2808 | -9/Mines | A large section of the Mines collapsed 3058 | -9/Mines | Excavation squad dispatched 3308 | -9/Mines | Excavation squad dispatched 3389 | -9/Mines | Entered Materials 3389 | -8/Materials | Evolved 4 slots: Propulsion x1, Utility x2, Weapon x1 3433 | -8/Materials | Garrison activated, responded to threat 3809 | -8/Materials | Lost 3 parts (2u1w) 4290 | -8/Materials | Discovered new exit (range 16) 4558 | -8/Materials | Core integrity fell below 50% 4643 | -8/Materials | Build established: Scavenger-Gunner 4694 | -8/Materials | Discovered new exit (range 15) 5108 | -8/Materials | Entered Factory 5108 | -7/Factory | Evolved 2 slots: Power x1, Propulsion x1 5294 | -7/Factory | Identified exit to Storage 5294 | -7/Factory | Identified exit to Lower Caves 5332 | -7/Factory | Fabricated L-31 Rogue (x3) 5623 | -7/Factory | Entered Storage 5623 | -7/Storage | Accompanied by 1 ally 5624 | -7/Storage | Identified exit to Recycling 5654 | -7/Storage | Found Prototype Launcher 5655 | -7/Storage | Identified Rocket Array 5660 | -7/Storage | Found Rocket Array 5663 | -7/Storage | Found Rocket Array 5665 | -7/Storage | Found Rocket Array 5700 | -7/Storage | Found Rocket Array 5704 | -7/Storage | Found Rocket Array 5751 | -7/Storage | Found Prototype Protection 6032 | -7/Storage | Garrison activated, responded to threat 6118 | -7/Storage | Build established: Scavenger-Tank 6188 | -7/Storage | Lost 3 parts (3n) 6544 | -7/Storage | Lost 3 parts (2u1w) 6584 | -7/Storage | Used back door to open Recycling access 7236 | -7/Storage | Lost 3 parts (1p1n1u) 8636 | -7/Storage | Garrison activated, responded to threat 9223 | -7/Storage | First assault squad dispatched 9265 | -7/Storage | Discovered new exit (range 56) 9317 | -7/Storage | Lost 3 allies 10133 | -7/Storage | Destroyed 7 combat bots 10135 | -7/Storage | Lost 4 parts (1p2n1u) 10413 | -7/Storage | Build established: Scavenger-Bomber 10490 | -7/Storage | Core integrity fell below 50% 10523 | -7/Storage | Lost 3 parts (1n1u1w) 10594 | -7/Storage | System corruption reached 10% 10918 | -7/Storage | Identified Lgt. Regenerative Plating 10920 | -7/Storage | Core integrity fell below 20% 10925 | -7/Storage | High security lockdown imminent 10927 | -7/Storage | Destroyed by L-41 Fighter with Axe Last Messages --------------- 10919_ Critical hit (Smash). 10919_ Prc. Grenade Launcher destroyed. 10919_ System corrupted by crushing effect (+4). 10919_ G-47 Trooper destroyed. 10919_ G-50 Soldier destroyed. 10919_ G-47 Trooper destroyed. 10921_ The unstable cave ceiling collapses. 10921_ Minigun+ destroyed. 10921_ I-36 Angel destroyed. 10921_ Insulated Plating destroyed. 10921_ Destroyed Insulated Plating. 10921_ Destroyed Wheel. 10921_ M-28 Smith destroyed. 10923_ Med. Reactive Plating destroyed. 10925_ I-36 Angel destroyed. 10925_ ALERT: High security lockdown imminent, T-100. 10925_ Wheel destroyed. 10925_ Destroyed Wheel. 10926_ TIE DCXY|A&ESKR0#HJ/3:AW 10926_ The unstable cave ceiling collapses. Map ----- +----------------------------------------------------+ | #?????# "" # * #?????? | | #????## "" * # ##????? | | #????# + ##????? | | #????## # #?????? | | #???## # #?????? | | #??## ###+#?????? | | ###############+## * ## ##????? | | !! !!! [ #????? | | ###### #####! / #????? | | #????#+##+#######+ # ## #????? | | #????# # # ##? #????? | | ?????# * # ## #????? | | ?????# "" # # # ####?? | | ####?# "" # # ###+#####? | | ### "" #= # ##? | | T[""# ## # ### | | *=*Y"#####""" """#### # # # | | [!""#???#"""T"""# # # # # | | !]###???######### ## ### | | #????????????# # # ### | | #???????????## ### # # # | | #?????????### #*# # ### | | #?????????#!!! # ##? | | "###?????????# # %########? | | "#???????????#!!! * b# #?? | | "#???????????#### %[ @l > #?? | | ##??????????## # ### ! g!%g #?? | | ???????????## # ## # %*####?? | | ???????????# ^ ! #??? | | ???????????# " " #??? | | ???????????# [ " ###??? | | ??????????# " " "##????? | | ??????????## ### #????? | | ???????????# ! ## ##????? | | ???????????##################?????? | | | | | | | | | | | | | | | | | | | | | | | | | | | | | | | +----------------------------------------------------+ Best States ------------- Heat Dissipation 48 Energy Generation 30 Energy Capacity 490 Matter Stores 300 Matter Capacity 300 Sight Range 16 Terrain Scan Density 10 Armor Coverage 525 Resistance: KI 30 Resistance: EM 15 Evasion (%) 50 Recoil Reduction 4 Offensive Hacking 20 Item Schematics ----------------- None Robot Schematics ------------------ None Fabricated ------------ L-31 Rogue | x3 | -7/Factory | Preloaded Repaired ---------- Nothing Studied --------- Autogun | -8/Materials | Hacked Minigun | -8/Materials | Hacked Adv. Treads | -8/Materials | Hacked Imp. Treads | -8/Materials | Hacked Lgt. Treads | -8/Materials | Hacked Imp. Grenade Launcher | -8/Materials | Hacked Missile Launcher | -8/Materials | Hacked Alien Tech Used ----------------- None Achievements -------------- Myspace Challenges ------------ None Game ------ Seed ModifiedDerelictCompressor Manual? 0 Play Time 00:55:03 Cumulative 436.9 hours Start 2025.10.28 @ 03:37:04 End 2025.10.28 @ 04:49:21 Sessions 4 Manual Loads 0 Difficulty Rogue Special Mode None Game No. 559 Rogue 559 Adventurer 0 Explorer 0 Win Type - Total 13 Types 6/0/2/2/1/0/2/0/0/0 Lore% 89 Gallery% 84 Achievement% 57 Wizard Run 0 Options --------- Layout 0 ASCII 0 Keyboard 0 Movement Mouse Keybinds 0 Fullscreen 1 Font 24/Terminus Map View 76x50 Zoom Use 0% Tactical HUD 1 Map Filters NONE Filters NONE Steam 1 RUN: 113cc5d2-4882-43db-b3b2-308f0872bb6b